{"text_format":"1","workbook":"xlsx","n_sheets":7,"sheets":["menu","メンテナンス","表紙入力","在庫報告書","標準部品集計表紙","標準部品計算1","標準部品入力2"],"not_rendered":{"charts":0,"images":0,"macros":1,"external_links":2,"defined_names":6,"comments":0,"pivot_tables":0},"unopened":[],"bounds":{"document_bytes":16777216,"sheet_cells":100000,"rows_first":2000,"rows_last":500,"rows_between":2000,"halvings":0,"cell_chars":16384,"cell_head_chars":4096},"cells_cut":0,"cells_raw":0,"read":"whole","date_system":"1900"}

{"sheet":"menu","index":0,"n_rows":20,"n_cols":14,"rows_kept":20,"cut":false,"hidden":false,"merged":[[11,4,11,5],[12,4,12,5]]}
[]
[null,null,"在庫処理メニュー",null,null," "]
[null,null,"　"]
[null,null,"　",null,"　",null,null,null,null,null,null,null,{"$f":"C5","v":"2018-06-30"}]
[null,null,"2018-06-30",null," ",null,null,"　",null,null,null,null,{"$f":"MONTH(M4)","v":6}]
[null,null,"当月日付入力",null," ",null,null,null,null,null,null,"営業実績更新許可",1]
[null,null,{"$f":"[1]menu!$E$9","v":"2018-06-30"},null,"　"]
[null,null,"標準入力チェック",null,"パスワード","****",null,null,null,null,null,null,"当月売上抽出Xlsmを単独で実行する場合の当月と当月予備の売上高を選択するための"]
[null,null,"　",null,"　"," ",null,null,null,null,null,null,0,"キーである。1は当月売上.xlsで1以外は当月売上Yが使用される。"]
[null,null," ",null,"　"]
[null,null,"　"]
[null,null,{"$f":"[2]menu!$C$13","v":"00:00:00"},null,"　",null,null,null,null,null,null,"YHチェック済・未",0]
[null,null,"仕入伝票入力状態",null,{"$f":"IF(M12=0,\"YHプログラムを起動せよ\",\"\")","v":"YHプログラムを起動せよ"}]
[null,null,"2018-06-30",null,"仕入伝票入力が開いていないか確認せよ"]
[null,null,"営業在庫入力チェック",null,"月末更新をしないと利期計画の計算はできない"]
[]
[]
[]
[null,null,null,null,{"$f":"TEXT(C5,\"yyyy\")","v":"2018"},"パスワード",3210]
[null,null,null,null,{"$f":"M5+1","v":7}]

{"sheet":"メンテナンス","index":1,"n_rows":8,"n_cols":3,"rows_kept":8,"cut":false,"hidden":false,"merged":[]}
[]
[null,null,"メンテナンスメニュー"]
[]
[null,null,"　"]
[null,null,"　"]
[null,null,"　"]
[null,null,"　"]
[null,null,"　"]

{"sheet":"表紙入力","index":2,"n_rows":37,"n_cols":60,"rows_kept":37,"cut":false,"hidden":false,"merged":[]}
[301]
[null,null,null,null,null,"NonPasword"]
[]
[null,null,"在庫機種表紙入力1",null,null,null,"在庫機種表紙入力2",null,null,null,"在庫機種表紙入力3",null,null,null,"在庫機種表紙入力4",null,null,null,"在庫機種表紙入力5",null,null,null,"在庫機種表紙入力6",null,null,null,"在庫機種表紙入力7",null,null,null,"在庫機種表紙入力8",null,null,null,"在庫機種表紙入力9",null,null,null,"在庫機種表紙入力10",null,null,null,"在庫機種表紙入力11",null,null,null,"在庫機種表紙入力12",null,null,null,"在庫機種表紙入力13",null,null,null,"在庫機種表紙入力14",null,null,null,"在庫機種表紙入力15"]
[null,null,{"$f":"+menu!$C$5","v":"2018-06-30"},"A",null,null,{"$f":"+menu!$C$5","v":"2018-06-30"},"B",null,null,{"$f":"+menu!$C$5","v":"2018-06-30"},"C",null,null,{"$f":"+menu!$C$5","v":"2018-06-30"},"D",null,null,{"$f":"+menu!$C$5","v":"2018-06-30"},"E",null,null,{"$f":"+menu!$C$5","v":"2018-06-30"},"F",null,null,{"$f":"+menu!$C$5","v":"2018-06-30"},"G",null,null,{"$f":"+menu!$C$5","v":"2018-06-30"},"H",null,null,{"$f":"+menu!$C$5","v":"2018-06-30"},"I",null,null,{"$f":"+menu!$C$5","v":"2018-06-30"},"J",null,null,{"$f":"+menu!$C$5","v":"2018-06-30"},"K",null,null,{"$f":"+menu!$C$5","v":"2018-06-30"},"鋼 材",null,null,{"$f":"+menu!$C$5","v":"2018-06-30"},"電装部品",null,null,{"$f":"+menu!$C$5","v":"2018-06-30"},"一般購入部品",null,null,{"$f":"+menu!$C$5","v":"2018-06-30"}," "]
[null,1,"引当繰越仕掛品",52340,null,1,"引当繰越仕掛品",0,null,1,"引当繰越仕掛品",2804222,null,1,"引当繰越仕掛品",0,null,1,"引当繰越仕掛品",2989963,null,1,"引当繰越仕掛品",6017786,null,1,"引当繰越仕掛品",231086,null,1,"引当繰越仕掛品",676762,null,1,"引当繰越仕掛品",0,null,1,"引当繰越仕掛品",106530,null,1,"引当繰越仕掛品",0,null,1,"　","　",null,1,"　"," ",null,1,"　","　",null,1," ",{"$f":"#REF!","v":{"$error":"#REF!"}}]
[null,2,"毎月棚卸 標準部品",{"$f":"標準部品集計表紙!D18","v":{"$error":"#REF!"}},null,2,null,null,null,2,"毎月棚卸 標準部品",{"$f":"標準部品集計表紙!H18","v":{"$error":"#REF!"}},null,2,"毎月棚卸 標準部品",{"$f":"標準部品集計表紙!AB18","v":{"$error":"#REF!"}},null,2,"毎月棚卸 標準部品",0,null,2,"毎月棚卸 標準部品",0,null,2,"毎月棚卸 標準部品",{"$f":"標準部品集計表紙!L19","v":{"$error":"#REF!"}},null,2,"毎月棚卸 標準部品",{"$f":"標準部品集計表紙!P18","v":{"$error":"#REF!"}},null,2,"毎月棚卸 標準部品",0,null,2,"　","　",null,2,"　",null,null,2," "," ",null,2,"　",null,null,2,null,null,null,2]
[null,3," "," ",null,3," "," ",null,3," ","　",null,3," "," ",null,3," "," ",null,3," "," ",null,3," "," ",null,3,"毎月棚卸 購入部品",{"$f":"標準部品集計表紙!T18","v":{"$error":"#REF!"}},null,3," "," ",null,3," "," ",null,3," "," ",null,3,null,null,null,3,"　"," ",null,3,null,null,null,3]
[null,null,null,null,null,4,null,null,null,4," ","　",null,4," "," ",null,4,"鋼材",{"$f":"$AV$9*0.3","v":0},null,4,"鋼材",{"$f":"$AV$9*0.3","v":0},null,4,"鋼材",{"$f":"$AV$9*0.3","v":0},null,4,"鋼材",{"$f":"$AV$9*0.3","v":0},null,4," "," ",null,4,"　","　",null,4,"　",null,null,4,"鋼材",0,null,4,"　","　",null,4,null,null,null,4]
[null,null,null,null,null,5,null,null,null,5,"電装部品",{"$f":"AZ10*0.2","v":138149},null,5,"　","　",null,5,"電装部品",{"$f":"AZ10*0.2","v":138149},null,5,"電装部品",{"$f":"AZ10*0.2","v":138149},null,5,"電装部品",{"$f":"AZ10*0.2","v":138149},null,5,"電装部品",{"$f":"AZ10*0.2","v":138149},null,5,"　",null,null,5,"　","　",null,5,"　","　",null,5,null,null,null,5,"電装部品",690745,null,5,null,null,null,5]
[null,null,null,null,null,6,null,null,null,6,"一般購入部品",{"$f":"BD11*0.2","v":228147.80000000002},null,6,"　","　",null,6,"一般購入部品",{"$f":"BD11*0.2","v":228147.80000000002},null,6,"一般購入部品",{"$f":"BD11*0.2","v":228147.80000000002},null,6,"一般購入部品",{"$f":"BD11*0.2","v":228147.80000000002},null,6,"一般購入部品",{"$f":"BD11*0.2","v":228147.80000000002},null,6,"　","　",null,6,"　","　",null,6,"　",null,null,6,null,null,null,6,"　"," ",null,6,"一般購入部品",1140739,null,6," "," "]
[null,null,"合   計",{"$f":"SUM(D6:D11)","v":{"$error":"#REF!"}},null,null,"合   計",{"$f":"SUM(H6:H11)","v":0},null,null,"合   計",{"$f":"SUM(L6:L11)","v":{"$error":"#REF!"}},null,null,"合   計",{"$f":"SUM(P6:P11)","v":{"$error":"#REF!"}},null,null,"合   計",{"$f":"SUM(T6:T11)","v":3356259.8},null,null,"合   計",{"$f":"SUM(X6:X11)","v":6384082.7999999998},null,null,"合   計",{"$f":"SUM(AB6:AB11)","v":{"$error":"#REF!"}},null,null,"合   計",{"$f":"SUM(AF6:AF11)","v":{"$error":"#REF!"}},null,null,"合   計",{"$f":"SUM(AJ6:AJ11)","v":0},null,null,"合   計",{"$f":"SUM(AN6:AN11)","v":106530},null,null,"合   計",{"$f":"SUM(AR6:AR11)","v":0},null,null,"合 計",{"$f":"SUM(AV6:AV11)","v":0},null,null,"合   計",{"$f":"SUM(AZ6:AZ11)","v":690745},null,null,"合 計",{"$f":"SUM(BD6:BD11)","v":1140739},null,null,"合 計",{"$f":"SUM(BH6:BH11)","v":{"$error":"#REF!"}}]
[]
[null,null,null,null,null,null,null,null,null,null," ",null,null,null,null,null,null,null," ",null,null,null," ",null,null,null," ",null,null,null," ",null,null,null,null,null,null,null,null,null,null,null,"　",null,null,null,"１１月と５月に棚卸する",null,null,null,"１１月と５月に棚卸する",null,null,null,"１１月と５月に棚卸する"]
[null,null,null,null,null,null,null,null,null,null," ",null,null,null,null,null,null,null," ",null,null,null," ",null,null,null," ",null,null,null," ",null,null,null,null,null,null,null,null,null,null,null,"　",null,null,null,"機種の使用割合で振り分けする",null,null,null,"機種の使用割合で振り分けする",null,null,null,"機種の使用割合で振り分けする"]
[null,null,null,null,null,null,null,null,null,null,null,null,null,null,null,null,null,null,null,null,null,null,null,null,null,null,null,null,null,null,null,null,null,null,null,null,null,null,null,null,null,null,"　"]
[]
[null,null,null,"　"]
[]
[]
[]
[]
[]
[]
[]
[null,null,"在庫機種表紙　1",null,null,null,"在庫機種表紙　2",null,null,null,"在庫機種表紙　3",null,null,null,"在庫機種表紙　4",null,null,null,"在庫機種表紙　5",null,null,null,"在庫機種表紙　6",null,null,null,"在庫機種表紙　7",null,null,null,"在庫機種表紙　8",null,null,null,"在庫機種表紙　9",null,null,null,"在庫機種表紙　10",null,null,null,"在庫機種表紙　11",null,null,null,"在庫機種表紙　12",null,null,null,"在庫機種表紙　13",null,null,null,"在庫機種表紙　14",null,null,null,"在庫機種表紙　15"]
[null,null,"2018-06-30","A",null,null,"2018-06-30","B",null,null,"2018-06-30","C",null,null,"2018-06-30","D",null,null,"2018-06-30","E",null,null,"2018-06-30","F",null,null,"2018-06-30","G",null,null,"2018-06-30","H",null,null,"2018-06-30","I",null,null,"2018-06-30","J",null,null,"2018-06-30","K",null,null,"2018-06-30","鋼 材",null,null,"2018-06-30","電装部品",null,null,"2018-06-30","一般購入部品",null,null,"2018-06-30"," "]
[null,1,"引当繰越仕掛品",52340,null,1,"引当繰越仕掛品",0,null,1,"引当繰越仕掛品",2804222,null,1,"引当繰越仕掛品",0,null,1,"引当繰越仕掛品",2989963,null,1,"引当繰越仕掛品",6017786,null,1,"引当繰越仕掛品",231086,null,1,"引当繰越仕掛品",676762,null,1,"引当繰越仕掛品",0,null,1,"引当繰越仕掛品",106530,null,1,"引当繰越仕掛品",0,null,1,"　","　",null,1,"　"," ",null,1,"　","　",null,1," ",{"$error":"#REF!"}]
[null,2,"毎月棚卸 標準部品",{"$error":"#REF!"},null,2,null,null,null,2,"毎月棚卸 標準部品",{"$error":"#REF!"},null,2,"毎月棚卸 標準部品",{"$error":"#REF!"},null,2,"毎月棚卸 標準部品",0,null,2,"毎月棚卸 標準部品",0,null,2,"毎月棚卸 標準部品",{"$error":"#REF!"},null,2,"毎月棚卸 標準部品",{"$error":"#REF!"},null,2,"毎月棚卸 標準部品",0,null,2,"　","　",null,2,"　",null,null,2," "," ",null,2,"　",null,null,2,null,null,null,2]
[null,3," "," ",null,3," "," ",null,3," ","　",null,3," "," ",null,3," "," ",null,3," "," ",null,3," "," ",null,3,"毎月棚卸 購入部品",{"$error":"#REF!"},null,3," "," ",null,3," "," ",null,3," "," ",null,3,null,null,null,3,"　"," ",null,3,null,null,null,3]
[null,null,null,null,null,4,null,null,null,4," ","　",null,4," "," ",null,4,"鋼材",0,null,4,"鋼材",0,null,4,"鋼材",0,null,4,"鋼材",0,null,4," "," ",null,4,"　","　",null,4,"　",null,null,4,"鋼材",0,null,4,"　","　",null,4,null,null,null,4]
[null,null,null,null,null,5,null,null,null,5,"電装部品",138149,null,5,"　","　",null,5,"電装部品",138149,null,5,"電装部品",138149,null,5,"電装部品",138149,null,5,"電装部品",138149,null,5,"　",null,null,5,"　","　",null,5,"　","　",null,5,null,null,null,5,"電装部品",690745,null,5,null,null,null,5]
[null,null,null,null,null,6,null,null,null,6,"一般購入部品",228147.80000000002,null,6,"　","　",null,6,"一般購入部品",228147.80000000002,null,6,"一般購入部品",228147.80000000002,null,6,"一般購入部品",228147.80000000002,null,6,"一般購入部品",228147.80000000002,null,6,"　","　",null,6,"　","　",null,6,"　",null,null,6,null,null,null,6,"　"," ",null,6,"一般購入部品",1140739,null,6," "," "]
[null,null,"合   計",{"$error":"#REF!"},null,null,"合   計",0,null,null,"合   計",{"$error":"#REF!"},null,null,"合   計",{"$error":"#REF!"},null,null,"合   計",3356259.8,null,null,"合   計",6384082.7999999998,null,null,"合   計",{"$error":"#REF!"},null,null,"合   計",{"$error":"#REF!"},null,null,"合   計",0,null,null,"合   計",106530,null,null,"合   計",0,null,null,"合 計",0,null,null,"合   計",690745,null,null,"合 計",1140739,null,null,"合 計",{"$error":"#REF!"}]
[]
[null,null,null,null,null,null,null,null,null,null,"一般購入品　  20％振り当て",null,null,null,null,null,null,null,"一般購入品　  20％振り当て",null,null,null,"一般購入品　  20％振り当て",null,null,null,"一般購入品　  20％振り当て",null,null,null,"一般購入品　  20％振り当て",null,null,null,null,null,null,null,null,null,null,null,null,null,null,null,"１１月と５月に棚卸する",null,null,null,"１１月と５月に棚卸する",null,null,null,"１１月と５月に棚卸する"]
[null,null,null,null,null,null,null,null,null,null,"電装部品　　　 20％振り当て",null,null,null,null,null,null,null,"電装部品　　　 20％振り当て",null,null,null,"電装部品　　　 20％振り当て",null,null,null,"電装部品　　　 20％振り当て",null,null,null,"電装部品　　　 20％振り当て",null,null,null,null,null,null,null,null,null,null,null,null,null,null,null,"機種の使用割合で振り分けする",null,null,null,"機種の使用割合で振り分けする",null,null,null,"機種の使用割合で振り分けする"]

{"sheet":"在庫報告書","index":3,"n_rows":30,"n_cols":46,"rows_kept":30,"cut":false,"hidden":false,"merged":[]}
[]
[null,null,null,null,null,"NonPasword",null,null,null,null,null,null,null,null,null,null,null,null,null,null,null,null,null,null,null," ","  "," "]
[null,null,null,null,null,null,null,null,null,null,null,null,null,null,null,null,null,null,null,null,null,null,null,null,null,null," "," "]
[null,{"$f":"+menu!C5","v":"2018-06-30"}," "," "," ",null,null,null,null,null," ",null,null,null," ",{"$f":"B4","v":"2018-06-30"}," ",null,null,null,null,null," ",null,null,null,null,null,null,{"$f":"B18","v":"2018-06-30"}," "," "," ",null,null,null,null,null,null,null," "," "]
[null,null,null," ",null,"在 庫 報 告 書",null,null,null,null,null,"当月",null,null,null," ",null,"在 庫 増 減 表",null,null,null,null,null,null,null,null,null,null,null,null,null," ",null,"前月　在 庫 報 告 書 控",null,null,null,null,null,null,null,"　"]
[null,null,"A","B","C","D","E","F","G","H","I","J","K","総 合 計",null,null,"A","B","C","D","E","F","G","H","I","J","K","総 合 計",null,null,"A","B","C","D","E","F","G","H","I","J","K","総 合 計"]
[null,"1 引当繰越仕掛品",{"$f":"+表紙入力!D6","v":52340},{"$f":"+表紙入力!H6","v":0},{"$f":"+表紙入力!L6","v":2804222},{"$f":"+表紙入力!P6","v":0},{"$f":"+表紙入力!T6","v":2989963},{"$f":"+表紙入力!X6","v":6017786},{"$f":"+表紙入力!AB6","v":231086},{"$f":"+表紙入力!AF6","v":676762},{"$f":"+表紙入力!AJ6","v":0},106530,0,{"$f":"SUM(C7:M7)","v":12878689},null,"1 引当繰越仕掛品",{"$f":"+C7-AE7","v":15365},{"$f":"+D7-AF7","v":0},{"$f":"E7-AG7","v":1750967},0,2497972,{"$f":"H7-AJ7","v":2683832},-4407946,{"$f":"J7-AL7","v":-21174},0,0,0,{"$f":"SUM(Q7:AA7)","v":2519016},null,"1 引当繰越仕掛品",36975,0,1053255,0,491991,3333954,4639032,697936,0,106530,0,10359673,null,null,{"$f":"SUM(AE7:AO7)","v":10359673}]
[null,"2 毎月棚卸標準部品",{"$f":"+表紙入力!D7","v":{"$error":"#REF!"}},{"$f":"+表紙入力!H7","v":0},{"$f":"+表紙入力!L7","v":{"$error":"#REF!"}},{"$f":"+表紙入力!P7","v":{"$error":"#REF!"}},{"$f":"+表紙入力!T7","v":0},{"$f":"+表紙入力!X7","v":0},{"$f":"+表紙入力!AB7","v":{"$error":"#REF!"}},{"$f":"+表紙入力!AF7","v":{"$error":"#REF!"}},{"$f":"+表紙入力!AJ7","v":0},{"$f":"+表紙入力!AK7","v":0},0,{"$error":"#REF!"},null,"2 毎月棚卸標準部品",{"$f":"C8-AE8","v":{"$error":"#REF!"}},0,{"$error":"#REF!"},{"$error":"#REF!"},0,0,{"$error":"#REF!"},{"$error":"#REF!"},0,0,0,{"$error":"#REF!"},null,"2 毎月棚卸標準部品",268947,0,1773255,0,0,0,7948409,1086679,0,0,0,11077290,null,null,{"$f":"SUM(AE8:AO8)","v":11077290}]
[null,"3 毎月棚卸購入部品",0,0,0,0,0,0,0,{"$f":"+表紙入力!AF8","v":{"$error":"#REF!"}},0,0,{"$f":"表紙入力!BH12","v":{"$error":"#REF!"}},{"$error":"#REF!"},null,"3 毎月棚卸購入部品",0,0,0,0,0,0,0,{"$error":"#REF!"},0,0,{"$error":"#REF!"},{"$error":"#REF!"},null,"3 毎月棚卸購入部品",0,0,0,0,0,0,0,2044224,0,0,0,2044224,null,null,{"$f":"SUM(AE9:AO9)","v":2044224}]
[null,"4 鋼材",{"$f":"+表紙入力!D9","v":0},{"$f":"+表紙入力!H9","v":0},0,0,{"$f":"+表紙入力!T9","v":0},{"$f":"+表紙入力!X9","v":0},{"$f":"+表紙入力!AB9","v":0},{"$f":"+表紙入力!AF9","v":0},0,0,0,0,null,"4 鋼材",0,0,0,0,0,0,0,0,0,0,0,0,null,"4 鋼材",0,0,0,0,0,0,0,0,0,0,0,0]
[null,"5 電装部品在庫",{"$f":"+表紙入力!D10","v":0},{"$f":"+表紙入力!H10","v":0},{"$f":"+表紙入力!L10","v":138149},0,{"$f":"+表紙入力!T10","v":138149},{"$f":"+表紙入力!X10","v":138149},{"$f":"+表紙入力!AB10","v":138149},{"$f":"+表紙入力!AF10","v":138149},0,0,0,690745,null,"5 電装部品在庫",0,0,0,0,0,0,0,0,0,0,0,0,null,"5 電装部品在庫",0,0,138149,0,138149,138149,138149,138149,0,0,0,690745,null,null,{"$f":"SUM(AE11:AO11)","v":690745}]
[null,"6 一般購入部品在庫",{"$f":"+表紙入力!D11","v":0},{"$f":"+表紙入力!H11","v":0},{"$f":"+表紙入力!L11","v":228147.80000000002},0,{"$f":"+表紙入力!T11","v":228147.80000000002},{"$f":"+表紙入力!X11","v":228147.80000000002},{"$f":"+表紙入力!AB11","v":228147.80000000002},{"$f":"+表紙入力!AF11","v":228147.80000000002},0,0,0,1140739,null,"6 一般購入部品在庫",0,0,0,0,0,0,0,0,0,0,0,0,null,"6 一般購入部品在庫",0,0,228147.80000000002,0,228147.80000000002,228147.80000000002,228147.80000000002,228147.80000000002,0,0,0,1140739,null,null,{"$f":"SUM(AE12:AO12)","v":1140739}]
[null,"合   計",{"$f":"SUM(C7:C12)","v":{"$error":"#REF!"}},0,{"$error":"#REF!"},{"$error":"#REF!"},3356259.8,{"$f":"SUM(H7:H12)","v":6384082.7999999998},{"$error":"#REF!"},{"$error":"#REF!"},0,{"$f":"SUM(L7:L12)","v":106530},{"$error":"#REF!"},{"$error":"#REF!"},null,"合   計",{"$f":"SUM(Q7:Q12)","v":{"$error":"#REF!"}},{"$f":"SUM(R7:R12)","v":0},{"$error":"#REF!"},{"$error":"#REF!"},2497972,{"$f":"SUM(V7:V12)","v":2683832},{"$error":"#REF!"},{"$error":"#REF!"},0,0,{"$error":"#REF!"},{"$f":"SUM(AB7:AB12)","v":{"$error":"#REF!"}},null,"合   計",305922,0,3192806.8,0,858287.8,3700250.8,12953737.800000001,4195135.8,0,106530,0,25312671,null,null,{"$f":"SUM(AP7:AP12)","v":25312671},{"$f":"SUM(AP7:AP12)","v":25312671}]
[]
[null,null,null,null,null,null,null,null,null,null,null,null,"確認横合計",{"$f":"SUM(C13:M13)","v":{"$error":"#REF!"}},null,null,null,null,null,null,null,null,null,null,null,null,"横合計確認",{"$f":"SUM(Q13:AA13)","v":{"$error":"#REF!"}},null,null,null,null,null,null,null,{"$f":"AP13-N13","v":{"$error":"#REF!"}}]
[]
[]
[null,"2018-06-30"," "," "," ",null,null,null,null,null," "]
[null,null,null," ",null,"在 庫 報 告 書",null,null,null,null,null,"当月"]
[null,null,"A","B","C","D","E","F","G","H","I","J","K","総 合 計"]
[null,"1 引当繰越仕掛品",52340,0,2804222,0,2989963,6017786,231086,676762,0,106530,0,12878689]
[null,"2 毎月棚卸標準部品",268947,0,1773255,0,0,0,6286797,805218,0,0,0,9134217]
[null,"3 毎月棚卸購入部品",0,0,0,0,0,0,0,2173867,0,0,0,2173867]
[null,"4 鋼材",0,0,0,0,0,0,0,0,0,0,0,0]
[null,"5 電装部品在庫",0,0,138149,0,138149,138149,138149,138149,0,0,0,690745]
[null,"6 一般購入部品在庫",0,0,228147.80000000002,0,228147.80000000002,228147.80000000002,228147.80000000002,228147.80000000002,0,0,0,1140739]
[null,"合   計",321287,0,4943773.8,0,3356259.8,6384082.7999999998,6884179.7999999998,4022143.8,0,106530,0,26018257]
[]
[]
[null,null,null,null,null,null,null," "," "]

{"sheet":"標準部品集計表紙","index":4,"n_rows":19,"n_cols":28,"rows_kept":19,"cut":false,"hidden":false,"merged":[]}
[]
[]
[]
[null,null,"毎月棚卸　標準部品明細",{"$f":"menu!C5","v":"2018-06-30"},null,null,"毎月棚卸　標準部品明細",{"$f":"D4","v":"2018-06-30"},null,null,"毎月棚卸　標準部品明細",{"$f":"D4","v":"2018-06-30"},null,null,"毎月棚卸　標準部品明細",{"$f":"D4","v":"2018-06-30"},null,null,"毎月棚卸　購入部品明細",{"$f":"D4","v":"2018-06-30"},null,null,"毎月棚卸　購入部品明細",{"$f":"D4","v":"2018-06-30"},null,null,"毎月棚卸　購入部品明細",{"$f":"D4","v":"2018-06-30"}]
[null,null,{"$f":"+menu!$C$12","v":"00:00:00"}," ",null,null,{"$f":"+menu!$C$12","v":"00:00:00"}," ",null,null,{"$f":"+menu!$C$12","v":"00:00:00"}," ",null,null,{"$f":"+menu!$C$12","v":"00:00:00"}," ",null,null,{"$f":"+menu!$C$12","v":"00:00:00"}," ",null,null,{"$f":"+menu!$C$12","v":"00:00:00"}," ",null,null,{"$f":"+menu!$C$12","v":"00:00:00"}," "]
[null,"①",null,{"$f":"+標準部品計算1!H3","v":0},null,"①",null,{"$f":"+標準部品計算1!#REF!","v":{"$error":"#REF!"}},null,"①",null,{"$f":"+#REF!","v":{"$error":"#REF!"}},null,"①",null,{"$f":"+#REF!","v":{"$error":"#REF!"}},null,"①"," ",{"$f":"+#REF!","v":{"$error":"#REF!"}},null,"①"," ",{"$f":"標準部品計算1!#REF!","v":{"$error":"#REF!"}},null,"①"," ",{"$f":"標準部品計算1!#REF!","v":{"$error":"#REF!"}}]
[null,"②",null,{"$f":"+標準部品計算1!R3","v":0},null,"②",null,{"$f":"+標準部品計算1!#REF!","v":{"$error":"#REF!"}},null,"②",null,{"$f":"+#REF!","v":{"$error":"#REF!"}},null,"②",null,{"$f":"+#REF!","v":{"$error":"#REF!"}},null,"②"," ",{"$f":"+#REF!","v":{"$error":"#REF!"}},null,"　","　","　",null,"　","　","　"]
[null,"③",null,{"$f":"+標準部品計算1!AB3","v":0},null,"③",null,{"$f":"+標準部品計算1!#REF!","v":{"$error":"#REF!"}},null,"③",null,{"$f":"+#REF!","v":{"$error":"#REF!"}},null,"③",null,{"$f":"+#REF!","v":{"$error":"#REF!"}},null,"③"," ",{"$f":"+#REF!","v":{"$error":"#REF!"}},null,"　","　","　",null,"　","　","　"]
[null,"④",null,{"$f":"+標準部品計算1!AL3","v":0},null,"④",null,{"$f":"+標準部品計算1!#REF!","v":{"$error":"#REF!"}},null,"④",null,{"$f":"+#REF!","v":{"$error":"#REF!"}},null,"④",null,{"$f":"+#REF!","v":{"$error":"#REF!"}},null,"　","　","　",null,"　","　","　",null,"　","　","　"]
[null,"⑤",null,{"$f":"+標準部品計算1!AV3","v":0},null,"　","　","　",null,"⑤",null,{"$f":"+#REF!","v":{"$error":"#REF!"}},null,"⑤",null,{"$f":"+#REF!","v":{"$error":"#REF!"}},null,"　","　","　",null,"　","　","　",null,"　","　","　"]
[null,"⑥",null,{"$f":"+標準部品計算1!#REF!","v":{"$error":"#REF!"}},null,"　","　","　",null,"⑥",null,{"$f":"+#REF!","v":{"$error":"#REF!"}},null," "," "," ",null," "," "," ",null," "," "," ",null," "," "," "]
[null,"⑦",null,{"$f":"+標準部品計算1!#REF!","v":{"$error":"#REF!"}},null,"　","　","　",null,"⑦",null,{"$f":"+#REF!","v":{"$error":"#REF!"}},null,"　","　","　",null,"　","　","　",null,"　","　","　",null,"　","　","　"]
[null,"⑧",null,{"$f":"+標準部品計算1!#REF!","v":{"$error":"#REF!"}},null,"　","　",null,null,"⑧",null,{"$f":"+#REF!","v":{"$error":"#REF!"}},null,"　","　","　",null,"　","　","　",null,"　","　","　",null,"　","　","　"]
[null,"⑨",null,{"$f":"+標準部品計算1!#REF!","v":{"$error":"#REF!"}},null,"　","　",null,null,"⑨",null,{"$f":"+#REF!","v":{"$error":"#REF!"}},null,"　","　",null,null,"　","　",null,null,"　","　",null,null,"　","　"]
[null,"⑩",null,{"$f":"+標準部品計算1!#REF!","v":{"$error":"#REF!"}},null,"　","　",null,null,"⑩",null,{"$f":"+#REF!","v":{"$error":"#REF!"}},null,"　","　",null,null,"　","　",null,null,"　","　",null,null,"　","　"]
[null,"⑪",null,{"$f":"+標準部品計算1!#REF!","v":{"$error":"#REF!"}},null,"　","　",null,null,"⑪",null,{"$f":"+#REF!","v":{"$error":"#REF!"}},null,"　","　",null,null,"　","　",null,null,"　","　",null,null,"　","　"]
[null,"⑫",null,{"$f":"+標準部品計算1!#REF!","v":{"$error":"#REF!"}},null,"　","　",null,null,"⑫",null,{"$f":"+#REF!","v":{"$error":"#REF!"}},null,"　","　",null,null,"　","　",null,null,"　","　",null,null,"　","　"]
[null,"　","合   計",{"$f":"SUM(D6:D17)","v":{"$error":"#REF!"}},null,"　","合   計",{"$f":"SUM(H6:H17)","v":{"$error":"#REF!"}},null,"⑬",null,{"$f":"#REF!","v":{"$error":"#REF!"}},null,"　","合   計",{"$f":"SUM(P6:P17)","v":{"$error":"#REF!"}},null,"　","合   計",{"$f":"SUM(T6:T17)","v":{"$error":"#REF!"}},null,"　","合   計",{"$f":"SUM(X6:X17)","v":{"$error":"#REF!"}},null,"　","合   計",{"$f":"SUM(AB6:AB17)","v":{"$error":"#REF!"}}]
[null,null,null,null,null,null,null,null,null,"　","合   計",{"$f":"SUM(L6:L18)","v":{"$error":"#REF!"}}]

{"sheet":"標準部品計算1","index":5,"n_rows":81,"n_cols":50,"rows_kept":81,"cut":false,"hidden":false,"merged":[[1,2,1,3],[2,13,2,14],[2,33,2,34],[2,43,2,44],[2,23,2,24],[2,3,2,4]]}
[]
[null," ","毎月棚卸入力計算と印刷画面",null,null,null,null,{"$f":"SUM(G5:G80)","v":0},null,null,null,"　　",null,null,null,null,null,{"$f":"SUM(Q5:Q72)","v":0},null,null,null,"　",null,null,null,null,null,{"$f":"SUM(AA5:AA29)","v":0},null,null,null,"　",null,null,null,null,null,{"$f":"SUM(AK5:AK27)","v":0},null,null,null,"　",null,null,null,null,null,{"$f":"SUM(AU5:AU26)","v":0}]
[null," "," ","毎月棚卸標準部品",null,"①",{"$f":"+menu!$C$5","v":"2018-06-30"},{"$f":"G81","v":0},null,null,null," "," ","毎月棚卸標準部品",null,"②",{"$f":"+menu!$C$5","v":"2018-06-30"},{"$f":"Q73","v":0},null,null,null," "," ","毎月棚卸標準部品",null,"③",{"$f":"+menu!$C$5","v":"2018-06-30"},{"$f":"AA30","v":0},null,null,null," "," ","毎月棚卸標準部品",null,"④",{"$f":"+menu!$C$5","v":"2018-06-30"},{"$f":"AK28","v":0},null,null,null," "," ","毎月棚卸標準部品",null,"⑤",{"$f":"+menu!$C$5","v":"2018-06-30"},{"$f":"AU27","v":0}]
[null,"品番","品名","数量","材料費","外注加工費","金額"," ","材料単価","加工単価",null,"品番","品名","数量","材料費","外注加工費","金額",null,"材料単価","加工単価",null,"品番","品名","数量","材料費","外注加工費","金額",null,"材料単価","加工単価",null,"品番","品名","数量","材料費","外注加工費","金額",null,"材料単価","加工単価",null,"品番","品名","数量","材料費","外注加工費","金額",null,"材料単価","加工単価"]
[null,"01-01",null,null,null,null,null,null,9389,12000,null,"01-01",null,null,null,null,null,null,21247,27000,null,"01-01",null,null,null,null,null,null,0,55000,null,null,null,null,null,null,null,null,40000,29000,null,null,null,null,null,null,null,null,0,105000]
[null,"01-02",null,null,null,null,null,null,9389,12000,null,"01-02",null,null,null,null,null,null,21247,27000,null,"01-02",null,null,null,null,null,null,0,55000,null,null,null,null,null,null,null,null,1410,900,null,null,null,null,null,null,null,null,0,26277]
[null,"01-03",null,null,null,null,null,null,910,0,null,"01-03",null,null,null,null,null,null,1410,1000,null,"01-03",null,null,null,null,null,null,818,13070,null,null,null,null,null,null,null,null,1683,600,null,null,null,null,null,null,null,null,0,14706]
[null,"01-04",null,null,null,null,null,null,910,900,null,"01-04",null,null,null,null,null,null,1020,400,null,"01-04",null,null,null,null,null,null,1542,5250,null,null,null,null,null,null,null,null,5041,16800,null,null,null,null,null,null,null,null,0,1450]
[null,"01-05",null,null,null,null,null,null,604,320,null,"01-05",null,null,null,null,null,null,53340,1515,null,"01-05",null,null,null,null,null,null,0,32400,null,null,null,null,null,null,null,null,2076,7500,null,null,null,null,null,null,null,null,0,51500]
[null,"01-06",null,null,null,null,null,null,3789,9350,null,"01-06",null,null,null,null,null,null,2423,7020,null,"01-06",null,null,null,null,null,null,581,250,null,null,null,null,null,null,null,null,12000,15000,null,null,null,null,null,null,null,null,2925,350]
[null,"01-07",null,null,null,null,null,null,1202,4230,null,"01-07",null,null,null,null,null,null,0,3550,null,"01-07",null,null,null,null,null,null,0,9000,null,null,null,null,null,null,null,null,2136,250,null,null,null,null,null,null,null,null,1960,4500]
[null,"01-08",null,null,null,null,null,null,0,2890,null,"01-08",null,null,null,null,null,null,0,3550,null,"01-08",null,null,null,null,null,null,65,450,null,null,null,null,null,null,null,null,1200,2000,null,null,null,null,null,null,null,null,0,9500]
[null,"01-09",null,null,null,null,null,null,0,2890,null,"01-09",null,null,null,null,null,null,0,1740,null,"01-09",null,null,null,null,null,null,0,350,null,null,null,null,null,null,null,null,1200,2000,null,null,null,null,null,null,null,null,0,1600]
[null,"01-10",null,null,null,null,null,null,0,1375,null,"01-10",null,null,null,null,null,null,0,1740,null,"01-10",null,null,null,null,null,null,198,800,null,null,null,null,null,null,null,null,285,800,null,null,null,null,null,null,null,null,0,2342]
[null,"01-11",null,null,null,null,null,null,0,1375,null,"01-11",null,null,null,null,null,null,5090,8500,null,"01-11",null,null,null,null,null,null,87,300,null,null,null,null,null,null,null,null,267,800,null,null,null,null,null,null,null,null,0,1262]
[null,"01-12",null,null,null,null,null,null,2507,7200,null,"01-12",null,null,null,null,null,null,891,170,null,"01-12",null,null,null,null,null,null,198,800,null,null,null,null,null,null,null,null,154,300,null,null,null,null,null,null,null,null,0,622]
[null,"01-13",null,null,null,null,null,null,398,170,null,"01-13",null,null,null,null,null,null,0,195,null,"01-13",null,null,null,null,null,null,230,300,null,null,null,null,null,null,null,null,35,600,null,null,null,null,null,null,null,null,0,193]
[null,"01-14",null,null,null,null,null,null,0,175,null,"01-14",null,null,null,null,null,null,500,0,null,"01-14",null,null,null,null,null,null,0,2000,null,null,null,null,null,null,null,null,720,1500,null,null,null,null,null,null,null,null,50,600]
[null,"01-15",null,null,null,null,null,null,400,0,null,"01-15",null,null,null,null,null,null,0,110,null,"01-15",null,null,null,null,null,null,722,3700,null,null,null,null,null,null,null,null,2570,4000,null,null,null,null,null,null,null,null,0,1200]
[null,"01-16",null,null,null,null,null,null,470,0,null,"01-16",null,null,null,null,null,null,1200,1200,null,"01-16",null,null,null,null,null,null,243,1500,null,null,null,null,null,null,null,null,3800,9060,null,null,null,null,null,null,null,null,5250,2950]
[null,"01-17",null,null,null,null,null,null,470,850,null,"01-17",null,null,null,null,null,null,0,170,null,"01-17",null,null,null,null,null,null,0,1395,null,null,null,null,null,null,null,null,0,2000,null,null,null,null,null,null,null,null,2100,2500]
[null,"01-18",null,null,null,null,null,null,160,0,null,"01-18",null,null,null,null,null,null,246,1200,null,"01-18",null,null,null,null,null,null,320,1500,null,null,null,null,null,null,null,null,0,200,null,null,null,null,null,null,null,null,1950,6200]
[null,"01-19",null,null,null,null,null,null,160,500,null,"01-19",null,null,null,null,null,null,0,230,null,"01-19",null,null,null,null,null,null,1320,5000,null,null,null,null,null,null,null,null,0,3800,null,null,null,null,null,null,null,null,780,600]
[null,"01-20",null,null,null,null,null,null,0,170,null,"01-20",null,null,null,null,null,null,650,800,null,"01-20",null,null,null,null,null,null,0,4500,null," ",null,null,null,null,null,null,0,300,null,null,null,null,null,null,null,null,0,1750]
[null,null,null,null,null,null,null,null,0,200,null,null,null,null,null,null,null,null,1280,0,null,null,null,null,null,null,null,null,320,1560,null,null,null,null,null,null,null,null,0,700]
[null,null,null,null,null,null,null,null,0,100,null,null,null,null,null,null,null,null,425,300,null,null,null,null,null,null,null,null,722,3700]
[null,null,null,null,null,null,null,null,0,900,null,null,null,null,null,null,null,null,4370,0,null,null,null,null,null,null,null,null,189,750,null,null,null,null,null,null,null,null,null,null,null,null,"合計"]
[null,null,null,null,null,null,null,null,650,900,null,null,null,null,null,null,null,null,4370,3650,null,null,null,null,null,null,null,null,0,800,null,null,"合計"]
[null,null,null,null,null,null,null,null,260,420,null,null,null,null,null,null,null,null,1450,2450]
[null,null,null,null,null,null,null,null,260,360,null,null,null,null,null,null,null,null,0,6500,null,null,"合計"]
[null,null,null,null,null,null,null,null,390,300,null,null,null,null,null,null,null,null,640,750,null,null,null,null,null,null,null,null," ",null,null,null," "]
[null,null,null,null,null,null,null,null,0,65,null,null,null,null,null,null,null,null,150,0]
[null,null,null,null,null,null,null,null,550,0,null,null,null,null,null,null,null,null,67,400]
[null,null,null,null,null,null,null,null,720,0,null,null,null,null,null,null,null,null,430,600]
[null,null,null,null,null,null,null,null,720,0,null,null,null,null,null,null,null,null,430,600]
[null,null,null,null,null,null,null,null,350,220,null,null,null,null,null,null,null,null,0,230]
[null,null,null,null,null,null,null,null,2500,0,null,null,null,null,null,null,null,null,0,285]
[null,null,null,null,null,null,null,null,2500,3000,null,null,null,null,null,null,null,null,38,440]
[null,null,null,null,null,null,null,null,510,1120,null,null,null,null,null,null,null,null,170,250]
[null,null,null,null,null,null,null,null,750,0,null,null,null,null,null,null,null,null,170,250]
[null,null,null,null,null,null,null,null,750,850,null,null,null,null,null,null,null,null,217,1620]
[null,null,null,null,null,null,null,null,32,150,null,null,null,null,null,null,null,null,1548,3550]
[null,null,null,null,null,null,null,null,150,520,null,null,null,null,null,null,null,null,500,500]
[null,null,null,null,null,null,null,null,150,520,null,null,null,null,null,null,null,null,1560,2200]
[null,null,null,null,null,null,null,null,0,230,null,null,null,null,null,null,null,null,1010,850]
[null,null,null,null,null,null,null,null,77,200,null,null,null,null,null,null,null,null,0,7200]
[null,null,null,null,null,null,null,null,38,250,null,null,null,null,null,null,null,null,126,700]
[null,null,null,null,null,null,null,null,120,250,null,null,null,null,null,null,null,null,2080,0]
[null,null,null,null,null,null,null,null,120,250,null,null,null,null,null,null,null,null,1640,2750]
[null,null,null,null,null,null,null,null,162,780,null,null,null,null,null,null,null,null,0,290]
[null,null,null,null,null,null,null,null,0,68,null,null,null,null,null,null,null,null,268,1100]
[null,null,null,null,null,null,null,null,1040,0,null,null,null,null,null,null,null,null,65,500]
[null,null,null,null,null,null,null,null,1040,1750,null,null,null,null,null,null,null,null,0,115]
[null,null,null,null,null,null,null,null,0,290,null,null,null,null,null,null,null,null,1880,0]
[null,null,null,null,null,null,null,null,138,575,null,null,null,null,null,null,null,null,1880,1900]
[null,null,null,null,null,null,null,null,0,350,null,null,null,null,null,null,null,null,146,390]
[null,null,null,null,null,null,null,null,14,120,null,null,null,null,null,null,null,null,212,550]
[null,null,null,null,null,null,null,null,1210,0,null,null,null,null,null,null,null,null,48,475]
[null,null,null,null,null,null,null,null,1210,1650,null,null,null,null,null,null,null,null,0,100]
[null,null,null,null,null,null,null,null,220,265,null,null,null,null,null,null,null,null,1200,950]
[null,null,null,null,null,null,null,null,0,260,null,null,null,null,null,null,null,null,1460,3550]
[null,null,null,null,null,null,null,null,1170,0,null,null,null,null,null,null,null,null,470,1500]
[null,null,null,null,null,null,null,null,1170,1100,null,null,null,null,null,null,null,null,0,68]
[null,null,null,null,null,null,null,null,0,180,null,null,null,null,null,null,null,null,916,1300]
[null,null,null,null,null,null,null,null,0,70,null,null,null,null,null,null,null,null,0,700]
[null,null,null,null,null,null,null,null,0,50,null,null,null,null,null,null,null,null,0,200]
[null,null,null,null,null,null,null,null,0,250,null,null,null,null,null,null,null,null,0,2700]
[null,null,null,null,null,null,null,null,1170,1100,null,null,null,null,null,null,null,null,0,17381]
[null,null,null,null,null,null,null,null,0,390,null,null,null,null,null,null,null,null,0,8329]
[null,null,null,null,null,null,null,null,0,100]
[null,null,null,null,null,null,null,null,1500,1100]
[null,null,null,null,null,null,null,null,1170,1100]
[null,null,null,null,null,null,null,null,39,550,null,null,"合計"]
[null,null,null,null,null,null,null,null,0,85]
[null,null,null,null,null,null,null,null,370,800]
[null,null,null,null,null,null,null,null,1500,1100]
[null,null,null,null,null,null,null,null,0,285]
[null,null,null,null,null,null,null,null,370,0]
[null,null,null,null,null,null,null,null,370,500]
[]
[null,null,"合計"]

{"sheet":"標準部品入力2","index":6,"n_rows":36,"n_cols":24,"rows_kept":36,"cut":false,"hidden":false,"merged":[[2,22,2,23],[1,1,1,2],[2,2,2,3],[2,6,2,7],[2,10,2,11],[2,14,2,15],[2,18,2,19]]}
[]
[null,"標準部品数量 　入力画面"]
[null," ","部品在庫表",null,null," ","部品在庫表",null,null," ","部品在庫表",null,null," ","部品在庫表",null,null," ","部品在庫表",null,null," ","部品在庫表"]
[null,"品番","品名","数量",null,"品番","品名","数量",null,"品番","品名","数量",null,"品番","品名","数量",null,"品番","品名","数量",null,"品番","品名","数量"]
[null,"A0-01",null,2,null,"A1-01",null,5,null,"A2-01",null,2,null,"A4-30",null,9,null,"A6-01",null,10,null,"B1-01",null,5]
[null,"    02a",null,10,null,"     02",null,5,null,"    02",null,4,null,"     01",null,2,null,"     02",null,11,null,"     02",null,6]
[null,"    02b",null,4,null,"   　03",null,5,null,"    03",null,20,null,"     02",null,1,null,"     03",null,20,null,"     03",null,9]
[null,"    05",null,6,null,"     04",null,5,null,"    04",null,10,null,"     03",null,21,null,"     04",null,7,null,"     04",null,2]
[null,"    06",null,14,null,"     06",null,194,null,"    05",null,2,null,"     05",null,4,null,"     05",null,6]
[null,"    08",null,6,null,"    08",null,107,null,"    06",null,3,null,"     06",null,4,null,"     06",null,8,null,"B2-01",null,3]
[null,"    09",null,7,null,"    10",null,60,null,"    07",null,19,null,"     07",null,0,null,"     07",null,6,null,"     02",null,3]
[null,"    10",null,7,null,"    11",null,9,null,"    08",null,15,null,"     08",null,8,null,"     08",null,9]
[null,"    11",null,6,null,"    12",null,0,null,"    13",null,422,null,"     09",null,8,null,"     09",null,0,null,"C-01",null,0]
[null,"    12",null,0,null,"    13",null,93,null,"14a",null,6,null,"     10",null,10,null,"     10",null,9]
[null,"  　13",null,4,null,"    14",null,361,null,"    14b",null,18,null,"     11",null,5,null,"     11",null,7,null,null,null,5]
[null,"    13",null,4,null,"    18",null,8,null,"    15",null,63,null,"     12a",null,9,null,"     12",null,101,null,null,null,0]
[null,"     14",null,10,null,"    19",null,3,null," ",null,null,null,"     12b",null,17]
[null,"      15 ",null,1,null,"    21",null,7,null,"A3-01",null,13,null,"     13",null,11,null,"A7-01",null,7,null,"A1-19",null,10]
[null,"     16",null,0,null,"    22",null,6,null,"        02",null,93,null,"     14a",null,10,null,"     02",null,10,null,"A1-01",null,336]
[null,"     17",null,5,null,"    23",null,7,null,"        03",null,9,null,"     14b",null,4,null,"     03",null,9,null,"A1-27a",null,12]
[null,"     20",null,0,null,"    24",null,6,null,"        04",null,8,null,"     15a",null,31,null,"     04",null,9,null,"A1-27b",null,11]
[null,"21",null,10,null,"    25",null,6,null,"        05a",null,6,null,"     15b",null,24,null,"     05",null,0,null,"A1-01",null,888]
[null,"21",null,0,null,"    26",null,6,null,"        05b",null,8,null,"     15c",null,23,null,"     06",null,37,null,"A4-01",null,1]
[null,null,null,null,null,"    28",null,26,null,"        06",null,5,null,"     16",null,2,null,"     07",null,0,null,"A0-01",null,3]
[null,null,null,null,null,"    29",null,16,null,"        08",null,9,null,"     17",null,3,null,"     08",null,5,null,"A0-01",null,16]
[null,null,null,null,null,"    30",null,27,null,"        09",null,11,null,"     20",null,9,null,"   08b",null,10,null,"A0-01",null,9]
[null,null,null,null,null,"    32",null,7,null,"        10",null,7,null,"     22a",null,12,null,"     09",null,2,null,"A4-02",null,88]
[null,null,null,null,null,"    33a",null,7,null,null,null,null,null,"    22b",null,27,null,"     10",null,14,null,"B1-02",null,8]
[null,null,null,null,null,"    33b",null,7,null,null,null,null,null,null,null,null,null,"     11",null,18,null,"B1-01",null,3]
[null,null,null,null,null,null,null,null,null,null,null,null,null,"        24",null,36,null,null,null,null,null,"B1-02",null,3]
[null,null,null,null,null," "," ",null,null,null,null,null,null,"        25",null,32,null,null,null,null,null,"A6-07",null,0]
[null,null,null,null,null,null,null,null,null,null,null,null,null,"        26",null,35,null,null,null,null,null,"B2-02",null,6]
[null,null,null,null,null,null,null,null,null,null,null,null,null,"        28",null,7]
[null,null,null,null,null,null,null,null,null,null,null,null,null,"        29",null,32]
[null,null,null,null,null,null,null,null,null,null,null,null,null,"    31a",null,7]
[null,null,null,null,null,null,null,null,null,null,null,null,null,"       31b",null,7]